fUSD/lending_fUSD_20250607
["ID","MTS","AMOUNT","RATE_DAILY","PERIOD"]
[364872012,1749283848060,-197.0,0.00027123,2]
[364872013,1749283848070,-197.0,0.00027123,2]
[364872014,1749283848080,-197.0,0.00027123,2]
[364872015,1749283848089,-197.0,0.00027123,2]
[364872016,1749283848098,-197.0,0.00027123,2]
[364872017,1749283848108,-197.0,0.00027123,2]
[364872018,1749283848117,-1000.0,0.00027131,2]
[364872019,1749283848127,-13777.9134428,0.00027135,2]
[364872020,1749283848136,-512.391467,0.00027151,30]
[364872021,1749283848145,-150.0,0.00027151,2]
[364872022,1749283848155,-15410.11980894,0.00027156,2]
[364872023,1749283848164,-150.0,0.00027175,2]
[364872024,1749283848174,-165.36091429,0.00027178,30]
[364872025,1749283848184,-165.36091429,0.00027178,30]
[364872026,1749283848194,-177.0,0.00027185,7]
[364872027,1749283848203,-520.63509269,0.00027197,2]
[364872028,1749283848212,-150.0,0.00027228,2]
[364872029,1749283848222,-512.391467,0.0002726,30]
[364872030,1749283848231,-205.0,0.00027267,2]
[364872031,1749283848242,-150.0,0.00027271,2]
[364872032,1749283848251,-13777.9134428,0.00027277,2]
[364872033,1749283848261,-12332.3321328,0.00027277,2]
[364872034,1749283848270,-96445.3940997,0.00027287,2]
[364872035,1749283848280,-98658.6570626,0.00027287,2]
[364872036,1749283848290,-12332.3321328,0.00027289,2]
[364872037,1749283848299,-500.0,0.00027297,2]
[364872038,1749283848311,-12384.4228,0.00027297,2]
[364872039,1749283848321,-187627.8369,0.00027297,2]
[364872040,1749283848331,-1000.0,0.00027297,2]
[364872041,1749283848341,-5000.0,0.00027297,2]
[364872042,1749283848351,-151.0,0.00027297,7]
[364872043,1749283848361,-269.564938,0.00027297,7]
[364872044,1749283848371,-269.564938,0.00027297,7]
[364872045,1749283848381,-2000.0,0.00027299,2]
[364872046,1749283848393,-150.0,0.000273,2]
[364872047,1749283848403,-151.0,0.00027318,20]
[364872048,1749283848414,-150.0,0.00027322,2]
[364872049,1749283848424,-165.36091429,0.00027342,30]
[364872050,1749283848433,-165.36091429,0.00027342,30]
[364872051,1749283848443,-150.0,0.00027344,2]
[364872052,1749283848452,-150.0,0.00027359,2]
[364872053,1749283848463,-13777.9134428,0.00027363,2]
[364872054,1749283848473,-13777.9134428,0.00027367,2]
[364872055,1749283848483,-12332.3321328,0.00027367,2]
[364872056,1749283848492,-512.391467,0.0002737,30]
[364872057,1749283848502,-916.58451705,0.0002737,2]
[364872058,1749283848511,-500.55196899,0.00027373,2]
[364872059,1749283848521,-159.855648,0.00027373,2]
[364872060,1749283848532,-500.0,0.00027373,2]
[364872061,1749283848541,-159.855648,0.00027373,2]
[364872062,1749283848551,-159.855648,0.00027373,2]
[364872063,1749283848560,-159.871616,0.00027373,2]
[364872064,1749283848570,-159.855648,0.00027373,2]
[364872065,1749283848579,-159.855648,0.00027373,2]
[364872066,1749283848590,-500.0,0.00027373,2]
[364872067,1749283848599,-13777.9134428,0.00027377,2]
[364872068,1749283848609,-12332.3321328,0.00027377,2]
[364872069,1749283848619,-293.45,0.00027386,2]
[364872070,1749283848629,-197317.314125,0.00027387,2]
[364872071,1749283848638,-151.0,0.00027397,2]
[364872072,1749283848648,-151.0,0.00027397,2]
[364872073,1749283848658,-151.0,0.00027397,2]
[364872074,1749283848668,-151.0,0.00027397,2]
[364872075,1749283848678,-151.0,0.00027397,2]
[364872076,1749283848688,-151.0,0.00027397,2]
[364872077,1749283848698,-151.0,0.00027397,2]
[364872078,1749283848708,-151.0,0.00027397,2]
[364872079,1749283848717,-233.724459,0.00027397,7]
[364872080,1749283848727,-151.0,0.00027397,2]
[364872081,1749283848736,-233.724459,0.00027397,7]
[364872082,1749283848746,-151.0,0.00027397,2]
[364872083,1749283848755,-233.724459,0.00027397,7]
[364872084,1749283848765,-151.0,0.00027397,2]
[364872085,1749283848774,-233.724459,0.00027397,7]
[364872086,1749283848784,-151.0,0.00027397,2]
[364872087,1749283848794,-151.0,0.00027397,2]
[364872088,1749283848803,-151.0,0.00027397,2]
[364872089,1749283848814,-151.0,0.00027397,2]
[364872090,1749283848823,-151.0,0.00027397,2]
[364872091,1749283848833,-151.0,0.00027397,2]
[364872092,1749283848843,-233.724459,0.00027397,7]
[364872093,1749283848853,-233.724459,0.00027397,7]
[364872094,1749283848862,-233.724459,0.00027397,7]
[364872095,1749283848872,-233.724457,0.00027397,7]
[364872096,1749283848882,-416.498042,0.00027397,7]
[364872097,1749283848892,-416.498042,0.00027397,7]
[364872098,1749283848901,-416.498042,0.00027397,7]
[364872099,1749283848911,-416.498047,0.00027397,7]
[364872100,1749283848921,-151.0,0.00027397,7]
[364872101,1749283848930,-151.0,0.00027397,7]
[364872102,1749283848940,-151.0,0.00027397,7]
[364872103,1749283848950,-151.0,0.00027397,7]
[364872104,1749283848959,-151.0,0.00027397,7]
[364872105,1749283848969,-351.348169,0.00027397,7]
[364872106,1749283848979,-351.348169,0.00027397,7]
[364872107,1749283848988,-351.348169,0.00027397,7]
[364872108,1749283848998,-351.34817,0.00027397,7]
[364872109,1749283849008,-269.564938,0.00027397,7]
[364872110,1749283849017,-269.564938,0.00027397,7]
[364872111,1749283849027,-269.564938,0.00027397,7]
[364872112,1749283849037,-269.564938,0.00027397,7]
[364872113,1749283849047,-269.564938,0.00027397,7]
[364872114,1749283849057,-269.564938,0.00027397,7]
[364872115,1749283849067,-480.0,0.00027397,5]
[364872116,1749283849077,-480.0,0.00027397,5]
[364872117,1749283849088,-480.0,0.00027397,5]
[364872118,1749283849097,-480.0,0.00027397,5]
[364872119,1749283849106,-480.0,0.00027397,5]
[364872120,1749283849116,-480.0,0.00027397,5]
[364872121,1749283849126,-480.0,0.00027397,2]
[364872122,1749283849136,-492.29958263,0.00027397,5]
[364872123,1749283849145,-631.92,0.00027397,5]
[364872124,1749283849155,-486.09126929,0.00027397,5]
[364872125,1749283849165,-480.0,0.00027397,5]
[364872126,1749283849174,-480.87981901,0.00027397,2]
[364872127,1749283849183,-480.0,0.00027397,5]
[364872128,1749283849193,-433.07089719,0.00027397,5]
[364872129,1749283849203,-480.0,0.00027397,5]
[364872130,1749283849213,-480.0,0.00027397,5]
[364872131,1749283849222,-480.0,0.00027397,5]
[364872132,1749283849232,-222.34240529,0.00027397,5]
[364872133,1749283849241,-480.0,0.00027397,5]
[364872134,1749283849250,-480.0,0.00027397,5]
[364872135,1749283849260,-493.53946727,0.00027397,5]
[364872136,1749283849271,-480.0,0.00027397,5]
[364872137,1749283849281,-484.65494655,0.00027397,5]
[364872138,1749283849290,-480.0,0.00027397,5]
[364872139,1749283849300,-432.30071169,0.00027397,5]
[364872140,1749283849310,-480.0,0.00027397,5]
[364872141,1749283849324,-480.0,0.00027397,5]
[364872142,1749283849333,-482.16696901,0.00027397,5]
[364872143,1749283849343,-480.0,0.00027397,5]
[364872144,1749283849353,-480.0,0.00027397,5]
[364872145,1749283849362,-560.14257479,0.00027397,5]
[364872146,1749283849372,-480.0,0.00027397,5]
[364872147,1749283849383,-484.29621027,0.00027397,5]
[364872148,1749283849392,-480.0,0.00027397,5]
[364872149,1749283849402,-480.0,0.00027397,5]
[364872150,1749283849412,-489.73576939,0.00027397,5]
[364872151,1749283849422,-499.8827556,0.00027397,5]
[364872152,1749283849432,-480.0,0.00027397,5]
[364872153,1749283849442,-480.0,0.00027397,5]
[364872154,1749283849451,-480.0,0.00027397,5]
[364872155,1749283849461,-480.0,0.00027397,5]
[364872156,1749283849471,-480.0,0.00027397,5]
[364872157,1749283849480,-523.67968506,0.00027397,5]
[364872158,1749283849490,-480.0,0.00027397,5]
[364872159,1749283849499,-482.9088306,0.00027397,5]
[364872160,1749283849509,-480.0,0.00027397,5]
[364872161,1749283849519,-480.0,0.00027397,5]
[364872162,1749283849529,-529.43157275,0.00027397,5]
[364872163,1749283849539,-480.0,0.00027397,5]
[364872164,1749283849550,-342.42443047,0.00027397,5]
[364872165,1749283849559,-480.0,0.00027397,5]
[364872166,1749283849569,-480.0,0.00027397,5]
[364872167,1749283849582,-295.22800815,0.00027397,5]
[364872168,1749283849593,-480.0,0.00027397,5]
[364872169,1749283849604,-498.61095277,0.00027397,5]
[364872170,1749283849614,-480.0,0.00027397,5]
[364872171,1749283849624,-480.0,0.00027397,5]
[364872172,1749283849634,-300.0,0.00027397,5]
[364872173,1749283849644,-480.0,0.00027397,5]
[364872174,1749283849654,-485.90618444,0.00027397,5]
[364872175,1749283849664,-480.0,0.00027397,5]
[364872176,1749283849674,-428.67987014,0.00027397,5]
[364872177,1749283849684,-486.80380295,0.00027397,5]
[364872178,1749283849694,-480.0,0.00027397,5]
[364872179,1749283849704,-480.0,0.00027397,5]
[364872180,1749283849714,-509.07501896,0.00027397,5]
[364872181,1749283849724,-480.0,0.00027397,5]
[364872182,1749283849735,-434.5505268,0.00027397,5]
[364872183,1749283849746,-480.0,0.00027397,5]
[364872184,1749283849755,-484.81840201,0.00027397,5]
[364872185,1749283849766,-491.30367506,0.00027397,5]
[364872186,1749283849775,-482.33615052,0.00027397,5]
[364872187,1749283849785,-480.0,0.00027397,5]
[364872188,1749283849794,-155.16629765,0.00027397,5]
[364872189,1749283849804,-480.0,0.00027397,5]
[364872190,1749283849813,-480.0,0.00027397,5]
[364872191,1749283849823,-492.09122242,0.00027397,5]
[364872192,1749283849833,-480.0,0.00027397,5]
[364872193,1749283849843,-480.0,0.00027397,5]
[364872194,1749283849852,-491.95248591,0.00027397,5]
[364872195,1749283849862,-480.0,0.00027397,5]
[364872196,1749283849872,-452.14157502,0.00027397,5]
[364872197,1749283849882,-480.0,0.00027397,5]
[364872198,1749283849892,-480.0,0.00027397,5]
[364872199,1749283849902,-486.73250323,0.00027397,5]
[364872200,1749283849912,-480.97249773,0.00027397,5]
[364872201,1749283849922,-480.0,0.00027397,5]
[364872202,1749283849932,-480.0,0.00027397,5]
[364872203,1749283849942,-642.32,0.00027397,5]
[364872204,1749283849952,-480.0,0.00027397,5]
[364872205,1749283849962,-480.0,0.00027397,5]
[364872206,1749283849972,-480.0,0.00027397,5]
[364872207,1749283849981,-487.50923536,0.00027397,5]
[364872208,1749283849991,-480.0,0.00027397,5]
[364872209,1749283850000,-480.0,0.00027397,5]
[364872210,1749283850010,-1416.8,0.00027397,5]
[364872211,1749283850020,-489.46585648,0.00027397,5]
[364872212,1749283850030,-480.0,0.00027397,5]
[364872213,1749283850040,-480.0,0.00027397,5]
[364872214,1749283850050,-480.0,0.00027397,5]
[364872215,1749283850059,-499.33926502,0.00027397,5]
[364872216,1749283850070,-405.99384227,0.00027397,5]
[364872217,1749283850079,-480.0,0.00027397,5]
[364872218,1749283850090,-480.0,0.00027397,5]
[364872219,1749283850099,-480.0,0.00027397,5]
[364872220,1749283850109,-480.0,0.00027397,5]
[364872221,1749283850119,-480.0,0.00027397,5]
[364872222,1749283850128,-499.88405491,0.00027397,5]
[364872223,1749283850138,-486.19511733,0.00027397,5]
[364872224,1749283850148,-480.0,0.00027397,5]
[364872225,1749283850157,-488.00690606,0.00027397,5]
[364872226,1749283850167,-495.84295046,0.00027397,5]
[364872227,1749283850177,-357.43525227,0.00027397,5]
[364872228,1749283850187,-480.0,0.00027397,5]
[364872229,1749283850197,-496.98007809,0.00027397,5]
[364872230,1749283850208,-491.56906453,0.00027397,5]
[364872231,1749283850218,-519.12495234,0.00027397,5]
[364872232,1749283850227,-480.0,0.00027397,5]
[364872233,1749283850237,-495.7883324,0.00027397,5]
[364872234,1749283850247,-491.6239372,0.00027397,5]
[364872235,1749283850257,-481.04414073,0.00027397,5]
[364872236,1749283850267,-480.0,0.00027397,5]
[364872237,1749283850276,-480.0,0.00027397,5]
[364872238,1749283850286,-480.0,0.00027397,5]
[364872239,1749283850295,-480.0,0.00027397,5]
[364872240,1749283850305,-480.0,0.00027397,5]
[364872241,1749283850319,-488.9018027,0.00027397,5]
[364872242,1749283850329,-480.0,0.00027397,5]
[364872243,1749283850338,-483.40386196,0.00027397,5]
[364872244,1749283850348,-480.0,0.00027397,5]
[364872245,1749283850359,-480.0,0.00027397,5]
[364872246,1749283850369,-470.76019747,0.00027397,5]
[364872247,1749283850379,-480.14116459,0.00027397,5]
[364872248,1749283850389,-385.46913452,0.00027397,5]
[364872249,1749283850399,-427.50474168,0.00027397,5]
[364872250,1749283850410,-480.0,0.00027397,5]
[364872251,1749283850419,-480.0,0.00027397,5]
[364872252,1749283850429,-480.0,0.00027397,5]
[364872253,1749283850439,-480.0,0.00027397,5]
[364872254,1749283850449,-355.82049876,0.00027397,5]
[364872255,1749283850459,-480.0,0.00027397,5]
[364872256,1749283850468,-480.0,0.00027397,5]
[364872257,1749283850478,-480.0,0.00027397,5]
[364872258,1749283850487,-433.47910582,0.00027397,5]
[364872259,1749283850497,-722.44,0.00027397,5]
[364872260,1749283850506,-480.0,0.00027397,5]
[364872261,1749283850515,-480.0,0.00027397,5]
[364872262,1749283850525,-480.0,0.00027397,5]
[364872263,1749283850534,-503.26544929,0.00027397,5]
[364872264,1749283850544,-502.82610311,0.00027397,5]
[364872265,1749283850554,-658.72,0.00027397,5]
[364872266,1749283850564,-480.0,0.00027397,5]
[364872267,1749283850574,-480.0,0.00027397,5]
[364872268,1749283850583,-494.61358872,0.00027397,5]
[364872269,1749283850593,-540.21917309,0.00027397,5]
[364872270,1749283850602,-480.0,0.00027397,5]
[364872271,1749283850612,-480.0,0.00027397,5]
[364872272,1749283850622,-480.0,0.00027397,5]
[364872273,1749283850632,-485.14824123,0.00027397,5]
[364872274,1749283850641,-488.49537533,0.00027397,5]
[364872275,1749283850651,-480.0,0.00027397,5]
[364872276,1749283850660,-480.0,0.00027397,5]
[364872277,1749283850670,-492.1087559,0.00027397,5]
[364872278,1749283850679,-391.70791515,0.00027397,5]
[364872279,1749283850689,-480.0,0.00027397,5]
[364872280,1749283850698,-469.80536693,0.00027397,5]
[364872281,1749283850707,-480.0,0.00027397,5]
[364872282,1749283850717,-480.0,0.00027397,5]
[364872283,1749283850726,-480.0,0.00027397,5]
[364872284,1749283850735,-492.16538455,0.00027397,5]
[364872285,1749283850745,-490.36658162,0.00027397,5]
[364872286,1749283850755,-514.07,0.00027397,5]
[364872287,1749283850764,-455.65952385,0.00027397,5]
[364872288,1749283850774,-480.0,0.00027397,5]
[364872289,1749283850784,-480.0,0.00027397,5]
[364872290,1749283850793,-484.09000498,0.00027397,5]
[364872291,1749283850804,-480.0,0.00027397,5]
[364872292,1749283850813,-480.0,0.00027397,5]
[364872293,1749283850823,-487.22014676,0.00027397,5]
[364872294,1749283850832,-483.53787066,0.00027397,5]
[364872295,1749283850842,-480.0,0.00027397,5]
[364872296,1749283850852,-1423.16,0.00027397,5]
[364872297,1749283850861,-480.0,0.00027397,5]
[364872298,1749283850871,-483.27311345,0.00027397,5]
[364872299,1749283850881,-482.96009987,0.00027397,5]
[364872300,1749283850890,-480.0,0.00027397,5]
[364872301,1749283850900,-444.52636198,0.00027397,5]
[364872302,1749283850909,-480.0,0.00027397,5]
[364872303,1749283850919,-492.84153575,0.00027397,5]
[364872304,1749283850928,-480.0,0.00027397,5]
[364872305,1749283850938,-480.0,0.00027397,5]
[364872306,1749283850948,-350.5594619,0.00027397,5]
[364872307,1749283850958,-480.0,0.00027397,5]
[364872308,1749283850969,-1954.69,0.00027397,5]
[364872309,1749283850978,-487.54544254,0.00027397,5]
[364872310,1749283850988,-490.86607536,0.00027397,5]
[364872311,1749283850997,-480.0,0.00027397,5]
[364872312,1749283851007,-495.21795497,0.00027397,5]
[364872313,1749283851016,-488.01892616,0.00027397,5]
[364872314,1749283851029,-488.80105212,0.00027397,5]
[364872315,1749283851041,-480.0,0.00027397,5]
[364872316,1749283851050,-480.0,0.00027397,5]
[364872317,1749283851059,-471.19927273,0.00027397,5]
[364872318,1749283851069,-480.0,0.00027397,5]
[364872319,1749283851078,-487.22877357,0.00027397,5]
[364872320,1749283851087,-480.0,0.00027397,5]
[364872321,1749283851097,-480.0,0.00027397,5]
[364872322,1749283851107,-480.0,0.00027397,5]
[364872323,1749283851118,-483.02628075,0.00027397,5]
[364872324,1749283851131,-624.11,0.00027397,5]
[364872325,1749283851141,-486.50055348,0.00027397,5]
[364872326,1749283851151,-250.0,0.00027397,5]
[364872327,1749283851162,-482.43779893,0.00027397,5]
[364872328,1749283851171,-488.52046706,0.00027397,5]
[364872329,1749283851181,-480.0,0.00027397,5]
[364872330,1749283851191,-480.0,0.00027397,5]
[364872331,1749283851201,-480.0,0.00027397,5]
[364872332,1749283851210,-480.0,0.00027397,5]
[364872333,1749283851219,-489.21583851,0.00027397,5]
[364872334,1749283851229,-486.46714598,0.00027397,5]
[364872335,1749283851238,-269.22639665,0.00027397,5]
[364872336,1749283851247,-2000.0,0.00027397,5]
[364872337,1749283851256,-480.0,0.00027397,5]
[364872338,1749283851265,-480.0,0.00027397,5]
[364872339,1749283851275,-480.0,0.00027397,5]
[364872340,1749283851286,-480.0,0.00027397,5]
[364872341,1749283851296,-398.6754245,0.00027397,5]
[364872342,1749283851305,-480.0,0.00027397,5]
[364872343,1749283851317,-480.0,0.00027397,5]
[364872344,1749283851545,-480.0,0.00027397,5]
[364872345,1749283851555,-480.0,0.00027397,5]
[364872346,1749283851566,-457.8609667,0.00027397,5]
[364872347,1749283851576,-422.39032245,0.00027397,5]
[364872348,1749283851587,-618.47,0.00027397,5]
[364872349,1749283851598,-480.0,0.00027397,5]
[364872350,1749283851608,-491.01134746,0.00027397,5]
[364872351,1749283851620,-480.0,0.00027397,5]
[364872352,1749283851629,-488.18414687,0.00027397,5]
[364872353,1749283851639,-480.0,0.00027397,5]
[364872354,1749283851648,-480.0,0.00027397,5]
[364872355,1749283851658,-1137.84,0.00027397,5]
[364872356,1749283851668,-480.0,0.00027397,5]
[364872357,1749283851679,-480.0,0.00027397,5]
[364872358,1749283851688,-488.5673688,0.00027397,5]
[364872359,1749283851698,-480.0,0.00027397,5]
[364872360,1749283851708,-480.0,0.00027397,5]
[364872361,1749283851718,-495.54814177,0.00027397,5]
[364872362,1749283851727,-474.83599662,0.00027397,5]
[364872363,1749283851737,-360.0,0.00027397,5]
[364872364,1749283851747,-1163.74,0.00027397,5]
[364872365,1749283851757,-480.0,0.00027397,5]
[364872366,1749283851767,-480.0,0.00027397,5]
[364872367,1749283851777,-489.832948,0.00027397,5]
[364872368,1749283851786,-480.0,0.00027397,5]
[364872369,1749283851795,-494.65579468,0.00027397,5]
[364872370,1749283851805,-480.0,0.00027397,5]
[364872371,1749283851814,-480.0,0.00027397,5]
[364872372,1749283851824,-496.77805165,0.00027397,5]
[364872373,1749283851834,-497.98438443,0.00027397,5]
[364872374,1749283851843,-383.976827,0.00027397,5]
[364872375,1749283851853,-807.84,0.00027397,5]
[364872376,1749283851863,-1323.94,0.00027397,5]
[364872377,1749283851873,-480.0,0.00027397,5]
[364872378,1749283851883,-483.88069244,0.00027397,5]
[364872379,1749283851892,-498.04423124,0.00027397,5]
[364872380,1749283851902,-489.3188391,0.00027397,5]
[364872381,1749283851912,-480.0,0.00027397,5]
[364872382,1749283851922,-480.0,0.00027397,5]
[364872383,1749283851931,-480.0,0.00027397,5]
[364872384,1749283851941,-480.0,0.00027397,5]
[364872385,1749283851951,-509.47112471,0.00027397,5]
[364872386,1749283851961,-480.0,0.00027397,5]
[364872387,1749283851971,-480.0,0.00027397,5]
[364872388,1749283851981,-480.0,0.00027397,5]
[364872389,1749283851990,-480.0,0.00027397,5]
[364872390,1749283852000,-480.0,0.00027397,5]
[364872391,1749283852009,-427.33262794,0.00027397,5]
[364872392,1749283852019,-496.54,0.00027397,5]
[364872393,1749283852030,-722.49,0.00027397,5]
[364872394,1749283852040,-486.64735643,0.00027397,5]
[364872395,1749283852050,-480.0,0.00027397,5]
[364872396,1749283852060,-480.0,0.00027397,5]
[364872397,1749283852070,-480.0,0.00027397,5]
[364872398,1749283852080,-426.52207562,0.00027397,5]
[364872399,1749283852090,-480.0,0.00027397,5]
[364872400,1749283852099,-552.99500692,0.00027397,5]
[364872401,1749283852109,-421.92403671,0.00027397,5]
[364872402,1749283852119,-480.0,0.00027397,5]
[364872403,1749283852129,-480.0,0.00027397,5]
[364872404,1749283852138,-480.0,0.00027397,5]
[364872405,1749283852147,-495.79627939,0.00027397,5]
[364872406,1749283852157,-480.0,0.00027397,5]
[364872407,1749283852166,-480.0,0.00027397,5]
[364872408,1749283852176,-480.0,0.00027397,5]
[364872409,1749283852186,-1046.98,0.00027397,5]
[364872410,1749283852196,-480.0,0.00027397,5]
[364872411,1749283852205,-465.68785977,0.00027397,5]
[364872412,1749283852215,-482.56222229,0.00027397,5]
[364872413,1749283852224,-468.17028589,0.00027397,5]
[364872414,1749283852234,-480.0,0.00027397,5]
[364872415,1749283852244,-480.0,0.00027397,5]
[364872416,1749283852253,-520.28120671,0.00027397,5]
[364872417,1749283852263,-501.35379227,0.00027397,5]
[364872418,1749283852273,-480.0,0.00027397,5]
[364872419,1749283852282,-480.0,0.00027397,5]
[364872420,1749283852292,-480.0,0.00027397,5]
[364872421,1749283852301,-713.0,0.00027397,5]
[364872422,1749283852311,-548.11,0.00027397,5]
[364872423,1749283852326,-480.0,0.00027397,5]
[364872424,1749283852336,-480.0,0.00027397,5]
[364872425,1749283852347,-480.0,0.00027397,5]
[364872426,1749283852358,-346.74172017,0.00027397,5]
[364872427,1749283852368,-480.0,0.00027397,5]
[364872428,1749283852377,-486.16993969,0.00027397,5]
[364872429,1749283852387,-497.33998453,0.00027397,5]
[364872430,1749283852400,-480.0,0.00027397,5]
[364872431,1749283852410,-480.0,0.00027397,5]
[364872432,1749283852419,-610.98,0.00027397,5]
[364872433,1749283852429,-480.0,0.00027397,5]
[364872434,1749283852439,-480.0,0.00027397,5]
[364872435,1749283852449,-486.27741131,0.00027397,5]
[364872436,1749283852459,-480.0,0.00027397,5]
[364872437,1749283852469,-492.15611086,0.00027397,5]
[364872438,1749283852480,-480.0,0.00027397,5]
[364872439,1749283852490,-483.18649482,0.00027397,5]
[364872440,1749283852500,-480.0,0.00027397,5]
[364872441,1749283852510,-480.0,0.00027397,5]
[364872442,1749283852520,-882.53,0.00027397,5]
[364872443,1749283852530,-480.0,0.00027397,5]
[364872444,1749283852540,-448.56609639,0.00027397,5]
[364872445,1749283852550,-480.0,0.00027397,5]
[364872446,1749283852560,-480.0,0.00027397,5]
[364872447,1749283852570,-480.0,0.00027397,5]
[364872448,1749283852580,-480.0,0.00027397,5]
[364872449,1749283852590,-431.3303936,0.00027397,5]
[364872450,1749283852600,-480.0,0.00027397,5]
[364872451,1749283852611,-488.86804027,0.00027397,5]
[364872452,1749283852622,-480.0,0.00027397,5]
[364872453,1749283852632,-480.0,0.00027397,5]
[364872454,1749283852642,-480.0,0.00027397,5]
[364872455,1749283852652,-480.0,0.00027397,5]
[364872456,1749283852662,-285.01789484,0.00027397,5]
[364872457,1749283852673,-736.64,0.00027397,5]
[364872458,1749283852684,-493.8228521,0.00027397,5]
[364872459,1749283852694,-480.0,0.00027397,5]
[364872460,1749283852704,-480.0,0.00027397,5]
[364872461,1749283852714,-480.0,0.00027397,5]
[364872462,1749283852724,-488.4897653,0.00027397,5]
[364872463,1749283852734,-502.9651328,0.00027397,5]
[364872464,1749283852744,-480.0,0.00027397,5]
[364872465,1749283852754,-480.0,0.00027397,5]
[364872466,1749283852764,-480.0,0.00027397,5]
[364872467,1749283852774,-491.63697672,0.00027397,5]
[364872468,1749283852784,-658.07,0.00027397,5]
[364872469,1749283852794,-480.0,0.00027397,5]
[364872470,1749283852804,-480.0,0.00027397,5]
[364872471,1749283852813,-499.93502283,0.00027397,5]
[364872472,1749283852823,-676.89,0.00027397,5]
[364872473,1749283852834,-480.0,0.00027397,5]
[364872474,1749283852844,-480.0,0.00027397,5]
[364872475,1749283852854,-480.0,0.00027397,5]
[364872476,1749283852865,-611.81,0.00027397,5]
[364872477,1749283852875,-480.0,0.00027397,5]
[364872478,1749283852885,-480.0,0.00027397,5]
[364872479,1749283852895,-158.963045,0.00027397,5]
[364872480,1749283852905,-903.48,0.00027397,5]
[364872481,1749283852915,-1030.91,0.00027397,5]
[364872482,1749283852925,-545.14,0.00027397,5]
[364872483,1749283852935,-358.76453364,0.00027397,5]
[364872484,1749283852945,-514.18406807,0.00027397,5]
[364872485,1749283852955,-480.0,0.00027397,5]
[364872486,1749283852964,-480.0,0.00027397,5]
[364872487,1749283852975,-516.22989476,0.00027397,5]
[364872488,1749283852985,-496.28120796,0.00027397,5]
[364872489,1749283852994,-480.0,0.00027397,5]
[364872490,1749283853004,-302.98574352,0.00027397,5]
[364872491,1749283853014,-492.47751052,0.00027397,5]
[364872492,1749283853025,-480.0,0.00027397,5]
[364872493,1749283853035,-480.0,0.00027397,5]
[364872494,1749283853045,-480.0,0.00027397,5]
[364872495,1749283853055,-210.34723874,0.00027397,5]
[364872496,1749283853065,-480.0,0.00027397,5]
[364872497,1749283853075,-480.0,0.00027397,5]
[364872498,1749283853085,-480.0,0.00027397,5]
[364872499,1749283853095,-480.0,0.00027397,5]
[364872500,1749283853105,-480.0,0.00027397,5]
[364872501,1749283853115,-1787.253615,0.00027397,5]
[364872502,1749283853126,-652.14,0.00027397,5]
[364872503,1749283853136,-172.32450229,0.00027397,5]
[364872504,1749283853147,-480.0,0.00027397,5]
[364872505,1749283853157,-496.48103612,0.00027397,5]
[364872506,1749283853167,-502.25290532,0.00027397,5]
[364872507,1749283853176,-480.0,0.00027397,5]
[364872508,1749283853187,-500.0,0.00027397,5]
[364872509,1749283853196,-504.6627337,0.00027397,5]
[364872510,1749283853207,-500.0,0.00027397,5]
[364872511,1749283853216,-480.0,0.00027397,5]